[Event "Titled Tuesday Blitz May 10 Early 2022"]
[White "Nagy, Gabor"]
[Black "Khabinets, Ivan"]
[WhiteFideId "737119"]
[BlackFideId "14115980"]
[WhiteElo "2569"]
[BlackElo "2114"]
[Result "1-0"]
[Round "07"]
[TimeControl "180+1"]
[Date "2022.05.11"]
[WhiteClock "0:02:22"]
[BlackClock "0:01:47"]

1. e4 {[%clk 0:03:00]}  e5 {[%clk 0:02:59]} 2. Nf3 {[%clk 0:03:00]}  Nc6 {[%clk 0:03:00]} 3. Bb5 {[%clk 0:03:01]}  a6 {[%clk 0:03:00]} 4. Ba4 {[%clk 0:03:01]}  Nf6 {[%clk 0:02:59]} 5. d4 {[%clk 0:03:01]}  Nxe4 {[%clk 0:02:56]} 6. O-O {[%clk 0:02:58]}  Be7 {[%clk 0:02:52]} 7. d5 {[%clk 0:02:56]}  Nc5 {[%clk 0:02:50]} 8. Bb3 {[%clk 0:02:51]}  Nxb3 {[%clk 0:02:48]} 9. axb3 {[%clk 0:02:52]}  Nd4 {[%clk 0:02:47]} 10. Nxe5 {[%clk 0:02:50]}  Nf5 {[%clk 0:02:47]} 11. Nc3 {[%clk 0:02:42]}  O-O {[%clk 0:02:40]} 12. Re1 {[%clk 0:02:40]}  Re8 {[%clk 0:02:34]} 13. Nxf7 {[%clk 0:02:34]}  Kxf7 {[%clk 0:02:30]} 14. Qh5+ {[%clk 0:02:35]}  g6 {[%clk 0:02:24]} 15. Qxh7+ {[%clk 0:02:34]}  Ng7 {[%clk 0:02:24]} 16. Bh6 {[%clk 0:02:34]}  Bf6 {[%clk 0:02:24]} 17. Ne4 {[%clk 0:02:26]}  Re7 {[%clk 0:01:48]} 18. Ng5+ {[%clk 0:02:21]}  Bxg5 {[%clk 0:01:48]} 19. Qxg7+ {[%clk 0:02:22]}  Ke8 {[%clk 0:01:47]} 20. Qg8# {[%clk 0:02:22]} 1-0


[Site "https://www.chess.com"]

[Event "Titled Tuesday Blitz May 10 Early 2022"]
[White "Needleman, Alejandro"]
[Black "Winkels, Marcel"]
[WhiteFideId "100730"]
[BlackFideId "1003887"]
[WhiteElo "2336"]
[BlackElo "1900"]
[Result "1-0"]
[Round "07"]
[TimeControl "180+1"]
[Date "2022.05.11"]
[WhiteClock "0:01:03"]
[BlackClock "0:00:08"]

1. e4 {[%clk 0:03:00]}  d5 {[%clk 0:02:54]} 2. exd5 {[%clk 0:02:59]}  Qxd5 {[%clk 0:02:55]} 3. Nc3 {[%clk 0:02:58]}  Qd6 {[%clk 0:02:54]} 4. d4 {[%clk 0:02:57]}  Nf6 {[%clk 0:02:54]} 5. Nf3 {[%clk 0:02:57]}  c6 {[%clk 0:02:53]} 6. Be2 {[%clk 0:02:55]}  Bg4 {[%clk 0:02:52]} 7. O-O {[%clk 0:02:54]}  Nbd7 {[%clk 0:02:50]} 8. Bg5 {[%clk 0:02:52]}  h6 {[%clk 0:02:45]} 9. Bh4 {[%clk 0:02:52]}  e6 {[%clk 0:02:21]} 10. Bg3 {[%clk 0:02:48]}  Qb4 {[%clk 0:02:21]} 11. Rb1 {[%clk 0:02:45]}  Qb6 {[%clk 0:02:19]} 12. Ne5 {[%clk 0:02:41]}  Nxe5 {[%clk 0:02:14]} 13. dxe5 {[%clk 0:02:38]}  Bxe2 {[%clk 0:02:10]} 14. Qxe2 {[%clk 0:02:39]}  Nd5 {[%clk 0:02:09]} 15. Ne4 {[%clk 0:02:39]}  O-O-O {[%clk 0:01:51]} 16. a3 {[%clk 0:02:35]}  h5 {[%clk 0:01:50]} 17. c4 {[%clk 0:02:34]}  h4 {[%clk 0:01:38]} 18. cxd5 {[%clk 0:02:31]}  hxg3 {[%clk 0:01:37]} 19. dxc6 {[%clk 0:02:20]}  gxf2+ {[%clk 0:01:18]} 20. Rxf2 {[%clk 0:02:16]}  Bc5 {[%clk 0:01:07]} 21. Nxc5 {[%clk 0:02:15]}  Qxc5 {[%clk 0:01:05]} 22. cxb7+ {[%clk 0:02:14]}  Kb8 {[%clk 0:01:03]} 23. b4 {[%clk 0:02:08]}  Qb6 {[%clk 0:01:00]} 24. h3 {[%clk 0:02:05]}  Rd7 {[%clk 0:00:51]} 25. Kh1 {[%clk 0:01:51]}  Qxb7 {[%clk 0:00:48]} 26. Qg4 {[%clk 0:01:42]}  g6 {[%clk 0:00:46]} 27. Rc1 {[%clk 0:01:38]}  Rh5 {[%clk 0:00:44]} 28. Rfc2 {[%clk 0:01:32]}  Rxe5 {[%clk 0:00:20]} 29. Qf4 {[%clk 0:01:26]}  f6 {[%clk 0:00:19]} 30. Qxf6 {[%clk 0:01:20]}  Qe4 {[%clk 0:00:16]} 31. Qf8+ {[%clk 0:01:12]}  Kb7 {[%clk 0:00:15]} 32. Qc8+ {[%clk 0:01:13]}  Kb6 {[%clk 0:00:11]} 33. Qxd7 {[%clk 0:01:06]}  Rd5 {[%clk 0:00:08]} 34. Qc6# {[%clk 0:01:03]} 1-0


[Site "https://www.chess.com"]

[Event "Titled Tuesday Blitz May 10 Early 2022"]
[White "Nogerbek, Kazybek"]
[Black "Bortnyk, Olexandr"]
[WhiteFideId "13710427"]
[BlackFideId "14120828"]
[WhiteElo "2441"]
[BlackElo "2723"]
[Result "1/2-1/2"]
[Round "07"]
[TimeControl "180+1"]
[Date "2022.05.10"]
[WhiteClock "0:00:04"]
[BlackClock "0:00:03"]

1. Nf3 {[%clk 0:03:00]}  Nf6 {[%clk 0:02:59]} 2. c4 {[%clk 0:02:58]}  b6 {[%clk 0:02:59]} 3. g3 {[%clk 0:02:57]}  Bb7 {[%clk 0:03:00]} 4. Bg2 {[%clk 0:02:58]}  g6 {[%clk 0:03:00]} 5. O-O {[%clk 0:02:58]}  Bg7 {[%clk 0:03:01]} 6. b3 {[%clk 0:02:59]}  O-O {[%clk 0:02:56]} 7. Bb2 {[%clk 0:02:59]}  e6 {[%clk 0:02:57]} 8. Nc3 {[%clk 0:02:49]}  d5 {[%clk 0:02:56]} 9. cxd5 {[%clk 0:02:49]}  exd5 {[%clk 0:02:56]} 10. e3 {[%clk 0:02:49]}  Nbd7 {[%clk 0:02:52]} 11. Ne2 {[%clk 0:02:46]}  Ba6 {[%clk 0:02:51]} 12. Rc1 {[%clk 0:02:44]}  Re8 {[%clk 0:02:45]} 13. Re1 {[%clk 0:02:44]}  Nc5 {[%clk 0:02:39]} 14. Ne5 {[%clk 0:02:20]}  Ng4 {[%clk 0:02:18]} 15. Nc6 {[%clk 0:01:48]}  Qd6 {[%clk 0:02:13]} 16. Bxg7 {[%clk 0:01:47]}  Kxg7 {[%clk 0:02:14]} 17. Nb4 {[%clk 0:01:44]}  Bxe2 {[%clk 0:01:27]} 18. Qxe2 {[%clk 0:01:40]}  Nf6 {[%clk 0:01:11]} 19. Nc2 {[%clk 0:01:22]}  Ne6 {[%clk 0:01:08]} 20. d4 {[%clk 0:01:18]}  c5 {[%clk 0:01:07]} 21. dxc5 {[%clk 0:01:18]}  bxc5 {[%clk 0:01:08]} 22. Red1 {[%clk 0:01:12]}  Qe5 {[%clk 0:01:07]} 23. Ne1 {[%clk 0:01:09]}  Rac8 {[%clk 0:00:57]} 24. Qa6 {[%clk 0:01:06]}  h5 {[%clk 0:00:52]} 25. Qa5 {[%clk 0:00:39]}  Qf5 {[%clk 0:00:46]} 26. Nf3 {[%clk 0:00:18]}  Ne4 {[%clk 0:00:41]} 27. Qe1 {[%clk 0:00:19]}  Red8 {[%clk 0:00:36]} 28. Nd2 {[%clk 0:00:18]}  N6g5 {[%clk 0:00:33]} 29. Qe2 {[%clk 0:00:18]}  Re8 {[%clk 0:00:25]} 30. Nxe4 {[%clk 0:00:17]}  dxe4 {[%clk 0:00:25]} 31. h4 {[%clk 0:00:15]}  Nf3+ {[%clk 0:00:24]} 32. Kf1 {[%clk 0:00:15]}  Kh7 {[%clk 0:00:15]} 33. Rd6 {[%clk 0:00:12]}  Red8 {[%clk 0:00:12]} 34. Rcd1 {[%clk 0:00:12]}  Rxd6 {[%clk 0:00:11]} 35. Rxd6 {[%clk 0:00:13]}  Qe5 {[%clk 0:00:06]} 36. Rd1 {[%clk 0:00:12]}  Qf6 {[%clk 0:00:04]} 37. Qc2 {[%clk 0:00:10]}  Qf5 {[%clk 0:00:03]} 38. Qc4 {[%clk 0:00:08]}  Re8 {[%clk 0:00:02]} 39. Qd5 {[%clk 0:00:08]}  Re5 {[%clk 0:00:02]} 40. Qd7 {[%clk 0:00:08]}  Nh2+ {[%clk 0:00:03]} 41. Kg1 {[%clk 0:00:08]}  Ng4 {[%clk 0:00:04]} 42. Qxf5 {[%clk 0:00:08]}  gxf5 {[%clk 0:00:04]} 43. Rd2 {[%clk 0:00:07]}  Kg6 {[%clk 0:00:04]} 44. Bf1 {[%clk 0:00:07]}  Re7 {[%clk 0:00:04]} 45. Bc4 {[%clk 0:00:07]}  Ne5 {[%clk 0:00:03]} 46. Rd6+ {[%clk 0:00:08]}  f6 {[%clk 0:00:04]} 47. Be2 {[%clk 0:00:08]}  Rc7 {[%clk 0:00:03]} 48. Kg2 {[%clk 0:00:07]}  Rc6 {[%clk 0:00:02]} 49. Rd8 {[%clk 0:00:06]}  Rc7 {[%clk 0:00:03]} 50. Rg8+ {[%clk 0:00:05]}  Kh7 {[%clk 0:00:03]} 51. Rb8 {[%clk 0:00:06]}  Kg6 {[%clk 0:00:03]} 52. Rh8 {[%clk 0:00:07]}  Kg7 {[%clk 0:00:03]} 53. Rxh5 {[%clk 0:00:07]}  Rd7 {[%clk 0:00:02]} 54. Rxf5 {[%clk 0:00:07]}  Rd2 {[%clk 0:00:03]} 55. Bc4 {[%clk 0:00:06]}  Rxa2 {[%clk 0:00:03]} 56. Bd5 {[%clk 0:00:07]}  Ng4 {[%clk 0:00:02]} 57. Kg1 {[%clk 0:00:04]}  Ra1+ {[%clk 0:00:02]} 58. Kg2 {[%clk 0:00:05]}  Ra2 {[%clk 0:00:03]} 59. Kf1 {[%clk 0:00:03]}  Ra1+ {[%clk 0:00:03]} 60. Ke2 {[%clk 0:00:03]}  Ra2+ {[%clk 0:00:03]} 61. Ke1 {[%clk 0:00:03]}  Ra1+ {[%clk 0:00:04]} 62. Ke2 {[%clk 0:00:03]}  Ra2+ {[%clk 0:00:05]} 63. Kf1 {[%clk 0:00:04]}  Ra1+ {[%clk 0:00:04]} 64. Kg2 {[%clk 0:00:04]}  Ra2 {[%clk 0:00:03]} 1/2-1/2


[Site "https://www.chess.com"]

[Event "Titled Tuesday Blitz May 10 Early 2022"]
[White "Omelja, Artem"]
[Black "Keller, Peter"]
[WhiteFideId "14119846"]
[BlackFideId "1272105"]
[WhiteElo "2382"]
[BlackElo "2275"]
[Result "1-0"]
[Round "07"]
[TimeControl "180+1"]
[Date "2022.05.11"]
[WhiteClock "0:00:04"]
[BlackClock "0:00:06"]

1. d4 {[%clk 0:03:00]}  Nf6 {[%clk 0:02:59]} 2. c4 {[%clk 0:02:59]}  e6 {[%clk 0:02:57]} 3. Nf3 {[%clk 0:02:50]}  d5 {[%clk 0:02:55]} 4. Nc3 {[%clk 0:02:46]}  c6 {[%clk 0:02:45]} 5. Bg5 {[%clk 0:02:38]}  h6 {[%clk 0:02:44]} 6. Bh4 {[%clk 0:02:36]}  g5 {[%clk 0:02:37]} 7. Bg3 {[%clk 0:02:36]}  dxc4 {[%clk 0:02:37]} 8. e3 {[%clk 0:02:07]}  b5 {[%clk 0:02:22]} 9. a4 {[%clk 0:02:01]}  b4 {[%clk 0:02:15]} 10. Nb1 {[%clk 0:01:56]}  c3 {[%clk 0:01:36]} 11. bxc3 {[%clk 0:01:45]}  bxc3 {[%clk 0:01:37]} 12. Bd3 {[%clk 0:01:40]}  Ba6 {[%clk 0:01:18]} 13. O-O {[%clk 0:01:30]}  Qa5 {[%clk 0:01:11]} 14. Ne5 {[%clk 0:01:07]}  Bb4 {[%clk 0:01:05]} 15. Na3 {[%clk 0:00:42]}  O-O {[%clk 0:00:56]} 16. Nac4 {[%clk 0:00:20]}  Bxc4 {[%clk 0:00:51]} 17. Nxc4 {[%clk 0:00:21]}  Qd8 {[%clk 0:00:50]} 18. Bc2 {[%clk 0:00:14]}  Nbd7 {[%clk 0:00:44]} 19. Ne5 {[%clk 0:00:10]}  Nxe5 {[%clk 0:00:25]} 20. Bxe5 {[%clk 0:00:11]}  Nd7 {[%clk 0:00:23]} 21. Qd3 {[%clk 0:00:09]}  f5 {[%clk 0:00:24]} 22. Qc4 {[%clk 0:00:06]}  Qe7 {[%clk 0:00:19]} 23. Rab1 {[%clk 0:00:03]}  a5 {[%clk 0:00:17]} 24. Bb3 {[%clk 0:00:01]}  Rfe8 {[%clk 0:00:14]} 25. Rbc1 {[%clk 0:00:01]}  Nxe5 {[%clk 0:00:14]} 26. dxe5 {[%clk 0:00:01]}  Rad8 {[%clk 0:00:13]} 27. Rfd1 {[%clk 0:00:02]}  Rd5 {[%clk 0:00:14]} 28. Rd4 {[%clk 0:00:02]}  Red8 {[%clk 0:00:14]} 29. Qxc6 {[%clk 0:00:02]}  Rxd4 {[%clk 0:00:14]} 30. exd4 {[%clk 0:00:03]}  Rxd4 {[%clk 0:00:14]} 31. Bxe6+ {[%clk 0:00:03]}  Kg7 {[%clk 0:00:14]} 32. Bxf5 {[%clk 0:00:03]}  Qxe5 {[%clk 0:00:09]} 33. Qg6+ {[%clk 0:00:03]}  Kf8 {[%clk 0:00:10]} 34. Be6 {[%clk 0:00:03]}  Ke7 {[%clk 0:00:09]} 35. Qf7+ {[%clk 0:00:03]}  Kd6 {[%clk 0:00:09]} 36. g3 {[%clk 0:00:02]}  Qxe6 {[%clk 0:00:08]} 37. Qb7 {[%clk 0:00:02]}  Rd5 {[%clk 0:00:06]} 38. Qb6+ {[%clk 0:00:02]}  Ke7 {[%clk 0:00:05]} 39. Qc7+ {[%clk 0:00:02]}  Kf6 {[%clk 0:00:06]} 40. Qb8 {[%clk 0:00:01]}  c2 {[%clk 0:00:05]} 41. Qh8+ {[%clk 0:00:01]}  Kf7 {[%clk 0:00:05]} 42. Rxc2 {[%clk 0:00:01]}  Qe1+ {[%clk 0:00:05]} 43. Kg2 {[%clk 0:00:01]}  Qe4+ {[%clk 0:00:05]} 44. Kh3 {[%clk 0:00:02]}  Qxc2 {[%clk 0:00:05]} 45. Qh7+ {[%clk 0:00:02]}  Ke6 {[%clk 0:00:06]} 46. Qxc2 {[%clk 0:00:02]}  Re5 {[%clk 0:00:05]} 47. Qc4+ {[%clk 0:00:02]}  Kf6 {[%clk 0:00:05]} 48. Qa6+ {[%clk 0:00:03]}  Kf5 {[%clk 0:00:05]} 49. Qxh6 {[%clk 0:00:03]}  Ke4 {[%clk 0:00:06]} 50. Qg6+ {[%clk 0:00:02]}  Kd4 {[%clk 0:00:07]} 51. Kg2 {[%clk 0:00:03]}  Bc5 {[%clk 0:00:07]} 52. Qc6 {[%clk 0:00:03]}  Kc4 {[%clk 0:00:07]} 53. Qf3 {[%clk 0:00:03]}  Rd5 {[%clk 0:00:07]} 54. Qg4+ {[%clk 0:00:04]}  Kb3 {[%clk 0:00:06]} 55. h4 {[%clk 0:00:03]}  Rd2 {[%clk 0:00:06]} 56. Qxg5 {[%clk 0:00:03]}  Rxf2+ {[%clk 0:00:06]} 57. Kh3 {[%clk 0:00:04]}  Kxa4 {[%clk 0:00:06]} 58. Qxc5 {[%clk 0:00:04]} 1-0


[Site "https://www.chess.com"]

[Event "Titled Tuesday Blitz May 10 Early 2022"]
[White "Oparin, Grigoriy"]
[Black "Suleymanli, Aydin"]
[WhiteFideId "24125890"]
[BlackFideId "13413937"]
[WhiteElo "2665"]
[BlackElo "2481"]
[Result "1-0"]
[Round "07"]
[TimeControl "180+1"]
[Date "2022.05.10"]
[WhiteClock "0:00:44"]
[BlackClock "0:00:31"]

1. Nf3 {[%clk 0:03:00]}  d5 {[%clk 0:02:58]} 2. g3 {[%clk 0:03:00]}  Bg4 {[%clk 0:02:56]} 3. Bg2 {[%clk 0:02:59]}  Nd7 {[%clk 0:02:55]} 4. O-O {[%clk 0:02:59]}  c6 {[%clk 0:02:54]} 5. d3 {[%clk 0:03:00]}  e6 {[%clk 0:02:48]} 6. c4 {[%clk 0:03:00]}  Bd6 {[%clk 0:02:48]} 7. Nbd2 {[%clk 0:02:54]}  Ngf6 {[%clk 0:02:44]} 8. h3 {[%clk 0:02:53]}  Bh5 {[%clk 0:02:43]} 9. b3 {[%clk 0:02:53]}  a5 {[%clk 0:02:41]} 10. a3 {[%clk 0:02:52]}  a4 {[%clk 0:02:41]} 11. b4 {[%clk 0:02:51]}  O-O {[%clk 0:02:32]} 12. Bb2 {[%clk 0:02:51]}  e5 {[%clk 0:02:31]} 13. e4 {[%clk 0:02:44]}  dxe4 {[%clk 0:02:26]} 14. dxe4 {[%clk 0:02:43]}  c5 {[%clk 0:02:24]} 15. b5 {[%clk 0:02:27]}  Ne8 {[%clk 0:02:20]} 16. Nb1 {[%clk 0:02:00]}  Nb6 {[%clk 0:02:17]} 17. g4 {[%clk 0:01:36]}  Bg6 {[%clk 0:02:16]} 18. Nxe5 {[%clk 0:01:36]}  Bxe5 {[%clk 0:02:14]} 19. Bxe5 {[%clk 0:01:36]}  Nxc4 {[%clk 0:02:14]} 20. Bg3 {[%clk 0:01:26]}  Ned6 {[%clk 0:01:47]} 21. Nc3 {[%clk 0:01:24]}  Re8 {[%clk 0:01:37]} 22. Qd5 {[%clk 0:01:21]}  Qa5 {[%clk 0:01:26]} 23. Rfc1 {[%clk 0:01:08]}  Red8 {[%clk 0:00:57]} 24. e5 {[%clk 0:01:05]}  Nb6 {[%clk 0:00:51]} 25. Qxc5 {[%clk 0:00:59]}  Ndc4 {[%clk 0:00:52]} 26. Nd5 {[%clk 0:00:44]}  Nxd5 {[%clk 0:00:48]} 27. Qxc4 {[%clk 0:00:44]}  Nb6 {[%clk 0:00:44]} 28. Qc7 {[%clk 0:00:44]}  Qxb5 {[%clk 0:00:42]} 29. e6 {[%clk 0:00:44]}  fxe6 {[%clk 0:00:38]} 30. Qxb7 {[%clk 0:00:45]}  Rab8 {[%clk 0:00:31]} 31. Bxb8 {[%clk 0:00:44]} 1-0


[Site "https://www.chess.com"]

[Event "Titled Tuesday Blitz May 10 Early 2022"]
[White "Piliczewski, Bogusz"]
[Black "Kohler, Aran"]
[WhiteFideId "1104144"]
[BlackFideId "1002856"]
[WhiteElo "1896"]
[BlackElo "2302"]
[Result "0-1"]
[Round "07"]
[TimeControl "180+1"]
[Date "2022.05.11"]
[WhiteClock "0:00:01"]
[BlackClock "0:00:17"]

1. d4 {[%clk 0:02:55]}  d5 {[%clk 0:02:58]} 2. Nf3 {[%clk 0:02:54]}  Nf6 {[%clk 0:02:58]} 3. Bf4 {[%clk 0:02:54]}  c5 {[%clk 0:02:56]} 4. c3 {[%clk 0:02:53]}  Nc6 {[%clk 0:02:56]} 5. e3 {[%clk 0:02:52]}  Qb6 {[%clk 0:02:49]} 6. Qc1 {[%clk 0:02:50]}  cxd4 {[%clk 0:02:46]} 7. exd4 {[%clk 0:02:48]}  Bf5 {[%clk 0:02:44]} 8. Nbd2 {[%clk 0:02:33]}  e6 {[%clk 0:02:42]} 9. Be2 {[%clk 0:02:32]}  Rc8 {[%clk 0:02:39]} 10. O-O {[%clk 0:02:31]}  Be7 {[%clk 0:02:39]} 11. Nh4 {[%clk 0:02:13]}  Bg4 {[%clk 0:02:29]} 12. Bxg4 {[%clk 0:02:02]}  Nxg4 {[%clk 0:02:29]} 13. Nhf3 {[%clk 0:02:03]}  O-O {[%clk 0:02:23]} 14. Rb1 {[%clk 0:01:55]}  Nb4 {[%clk 0:02:16]} 15. Bg3 {[%clk 0:01:28]}  Bd6 {[%clk 0:01:40]} 16. Bxd6 {[%clk 0:01:21]}  Qxd6 {[%clk 0:01:41]} 17. a3 {[%clk 0:01:14]}  Nd3 {[%clk 0:01:40]} 18. Qc2 {[%clk 0:01:11]}  Nf4 {[%clk 0:01:40]} 19. h3 {[%clk 0:00:58]}  Nh6 {[%clk 0:01:24]} 20. Ne5 {[%clk 0:00:57]}  f6 {[%clk 0:01:18]} 21. Nd3 {[%clk 0:00:56]}  Nxd3 {[%clk 0:01:12]} 22. Qxd3 {[%clk 0:00:55]}  e5 {[%clk 0:01:13]} 23. Qg3 {[%clk 0:00:46]}  Rfd8 {[%clk 0:01:02]} 24. Rfe1 {[%clk 0:00:45]}  e4 {[%clk 0:00:59]} 25. Qxd6 {[%clk 0:00:43]}  Rxd6 {[%clk 0:00:59]} 26. Re2 {[%clk 0:00:39]}  f5 {[%clk 0:00:59]} 27. g3 {[%clk 0:00:38]}  Nf7 {[%clk 0:00:47]} 28. h4 {[%clk 0:00:36]}  h6 {[%clk 0:00:40]} 29. h5 {[%clk 0:00:30]}  g5 {[%clk 0:00:33]} 30. hxg6 {[%clk 0:00:29]}  Rxg6 {[%clk 0:00:34]} 31. Kh2 {[%clk 0:00:17]}  Kh7 {[%clk 0:00:30]} 32. Rh1 {[%clk 0:00:16]}  Rcg8 {[%clk 0:00:26]} 33. Kg1 {[%clk 0:00:14]}  f4 {[%clk 0:00:25]} 34. Nf1 {[%clk 0:00:13]}  Nd6 {[%clk 0:00:24]} 35. Re1 {[%clk 0:00:11]}  Nc4 {[%clk 0:00:22]} 36. Re2 {[%clk 0:00:10]}  f3 {[%clk 0:00:20]} 37. Rc2 {[%clk 0:00:10]}  b5 {[%clk 0:00:19]} 38. Rh5 {[%clk 0:00:10]}  Nb6 {[%clk 0:00:19]} 39. b3 {[%clk 0:00:08]}  Rg5 {[%clk 0:00:19]} 40. Rxg5 {[%clk 0:00:07]}  Rxg5 {[%clk 0:00:19]} 41. Ne3 {[%clk 0:00:08]}  h5 {[%clk 0:00:19]} 42. c4 {[%clk 0:00:08]}  bxc4 {[%clk 0:00:19]} 43. bxc4 {[%clk 0:00:08]}  dxc4 {[%clk 0:00:19]} 44. Nxc4 {[%clk 0:00:09]}  Nxc4 {[%clk 0:00:19]} 45. Rxc4 {[%clk 0:00:09]}  Ra5 {[%clk 0:00:19]} 46. Rc3 {[%clk 0:00:08]}  Kg6 {[%clk 0:00:19]} 47. Kf1 {[%clk 0:00:08]}  Kf5 {[%clk 0:00:20]} 48. Ke1 {[%clk 0:00:08]}  Ke6 {[%clk 0:00:20]} 49. Kd2 {[%clk 0:00:08]}  Kd5 {[%clk 0:00:21]} 50. Ke3 {[%clk 0:00:09]}  Rb5 {[%clk 0:00:21]} 51. Kf4 {[%clk 0:00:08]}  a5 {[%clk 0:00:21]} 52. Ke3 {[%clk 0:00:07]}  a4 {[%clk 0:00:21]} 53. Rc8 {[%clk 0:00:04]}  Rb3+ {[%clk 0:00:21]} 54. Kf4 {[%clk 0:00:04]}  Kxd4 {[%clk 0:00:21]} 55. Rd8+ {[%clk 0:00:05]}  Kc3 {[%clk 0:00:21]} 56. Kxe4 {[%clk 0:00:05]}  Rxa3 {[%clk 0:00:20]} 57. Kxf3 {[%clk 0:00:05]}  Kb2+ {[%clk 0:00:20]} 58. Kf4 {[%clk 0:00:06]}  Rb3 {[%clk 0:00:20]} 59. Rd2+ {[%clk 0:00:05]}  Kc1 {[%clk 0:00:19]} 60. Re2 {[%clk 0:00:04]}  a3 {[%clk 0:00:19]} 61. f3 {[%clk 0:00:04]}  Rb2 {[%clk 0:00:18]} 62. Re1+ {[%clk 0:00:03]}  Kc2 {[%clk 0:00:18]} 63. Ra1 {[%clk 0:00:03]}  a2 {[%clk 0:00:18]} 64. g4 {[%clk 0:00:03]}  hxg4 {[%clk 0:00:17]} 65. fxg4 {[%clk 0:00:02]}  Kb3 {[%clk 0:00:17]} 66. g5 {[%clk 0:00:02]}  Rf2+ {[%clk 0:00:17]} 67. Kg3 {[%clk 0:00:01]}  Rf8 {[%clk 0:00:16]} 68. Kg4 {[%clk 0:00:01]}  Kb2 {[%clk 0:00:17]} 0-1


[Site "https://www.chess.com"]

[Event "Titled Tuesday Blitz May 10 Early 2022"]
[White "Pinheiro, Iung Alicio de O."]
[Black "Matveeva, Olga"]
[WhiteFideId "2104350"]
[BlackFideId "24107018"]
[WhiteElo "2283"]
[BlackElo "2052"]
[Result "1-0"]
[Round "07"]
[TimeControl "180+1"]
[Date "2022.05.11"]
[WhiteClock "0:01:50"]
[BlackClock "0:00:38"]

1. c4 {[%clk 0:02:59]}  e6 {[%clk 0:02:58]} 2. g3 {[%clk 0:02:59]}  d5 {[%clk 0:02:57]} 3. Bg2 {[%clk 0:03:00]}  Nf6 {[%clk 0:02:56]} 4. Nf3 {[%clk 0:02:57]}  Be7 {[%clk 0:02:55]} 5. O-O {[%clk 0:02:58]}  O-O {[%clk 0:02:55]} 6. Qc2 {[%clk 0:02:57]}  c6 {[%clk 0:02:46]} 7. d4 {[%clk 0:02:55]}  Nbd7 {[%clk 0:02:46]} 8. Nbd2 {[%clk 0:02:54]}  b6 {[%clk 0:02:45]} 9. e4 {[%clk 0:02:55]}  dxe4 {[%clk 0:02:42]} 10. Nxe4 {[%clk 0:02:55]}  Nxe4 {[%clk 0:02:43]} 11. Qxe4 {[%clk 0:02:55]}  Bb7 {[%clk 0:02:43]} 12. Rd1 {[%clk 0:02:54]}  Qc8 {[%clk 0:02:43]} 13. Qe2 {[%clk 0:02:42]}  Nf6 {[%clk 0:02:37]} 14. Bg5 {[%clk 0:02:35]}  h6 {[%clk 0:02:35]} 15. Bf4 {[%clk 0:02:33]}  Rd8 {[%clk 0:02:26]} 16. h4 {[%clk 0:02:28]}  Bf8 {[%clk 0:02:13]} 17. Bh3 {[%clk 0:02:26]}  a5 {[%clk 0:01:46]} 18. Rac1 {[%clk 0:02:21]}  a4 {[%clk 0:01:44]} 19. Ne5 {[%clk 0:02:20]}  a3 {[%clk 0:01:33]} 20. b3 {[%clk 0:02:19]}  Ba6 {[%clk 0:01:21]} 21. g4 {[%clk 0:02:09]}  Nd5 {[%clk 0:01:17]} 22. Bg3 {[%clk 0:02:05]}  c5 {[%clk 0:01:10]} 23. Qf3 {[%clk 0:01:55]}  Nf6 {[%clk 0:00:49]} 24. g5 {[%clk 0:01:51]}  Bb7 {[%clk 0:00:47]} 25. d5 {[%clk 0:01:50]}  hxg5 {[%clk 0:00:38]} 26. hxg5 {[%clk 0:01:50]} 1-0


[Site "https://www.chess.com"]

[Event "Titled Tuesday Blitz May 10 Early 2022"]
[White "Polanco Nunez, Yoel Estarling"]
[Black "Aslanov, Umid"]
[WhiteFideId "6401783"]
[BlackFideId "13412620"]
[WhiteElo "2132"]
[BlackElo "1796"]
[Result "0-1"]
[Round "07"]
[TimeControl "180+1"]
[Date "2022.05.11"]
[WhiteClock "0:00:10"]
[BlackClock "0:00:56"]

1. Nf3 {[%clk 0:02:57]}  b6 {[%clk 0:02:58]} 2. e4 {[%clk 0:02:53]}  Bb7 {[%clk 0:02:59]} 3. Nc3 {[%clk 0:02:48]}  e6 {[%clk 0:02:59]} 4. a3 {[%clk 0:02:45]}  Nf6 {[%clk 0:03:00]} 5. e5 {[%clk 0:02:45]}  Nd5 {[%clk 0:02:58]} 6. Nxd5 {[%clk 0:02:44]}  Bxd5 {[%clk 0:02:57]} 7. d4 {[%clk 0:02:41]}  h6 {[%clk 0:02:53]} 8. c4 {[%clk 0:02:35]}  Bb7 {[%clk 0:02:49]} 9. Bd3 {[%clk 0:02:35]}  d6 {[%clk 0:02:45]} 10. Qe2 {[%clk 0:02:18]}  d5 {[%clk 0:02:41]} 11. cxd5 {[%clk 0:02:15]}  Qxd5 {[%clk 0:02:37]} 12. O-O {[%clk 0:02:15]}  Nd7 {[%clk 0:02:35]} 13. Rd1 {[%clk 0:02:05]}  g5 {[%clk 0:02:34]} 14. Bc4 {[%clk 0:02:04]}  Qe4 {[%clk 0:02:30]} 15. Be3 {[%clk 0:02:05]}  g4 {[%clk 0:02:28]} 16. Ne1 {[%clk 0:02:04]}  Qg6 {[%clk 0:02:15]} 17. d5 {[%clk 0:01:52]}  O-O-O {[%clk 0:01:41]} 18. dxe6 {[%clk 0:01:49]}  fxe6 {[%clk 0:01:42]} 19. Ba6 {[%clk 0:01:43]}  Bg7 {[%clk 0:01:37]} 20. Rac1 {[%clk 0:01:36]}  Nxe5 {[%clk 0:01:32]} 21. Bd2 {[%clk 0:01:20]}  Bxa6 {[%clk 0:01:25]} 22. Qxa6+ {[%clk 0:01:19]}  Kb8 {[%clk 0:01:26]} 23. Rxc7 {[%clk 0:01:04]}  Kxc7 {[%clk 0:01:24]} 24. Qxa7+ {[%clk 0:00:54]}  Kc6 {[%clk 0:01:22]} 25. Rc1+ {[%clk 0:00:42]}  Nc4 {[%clk 0:01:19]} 26. Rxc4+ {[%clk 0:00:37]}  Kd5 {[%clk 0:01:16]} 27. Qxb6 {[%clk 0:00:19]}  Kxc4 {[%clk 0:01:13]} 28. Qc6+ {[%clk 0:00:19]}  Kb3 {[%clk 0:01:11]} 29. Qb5+ {[%clk 0:00:15]}  Ka2 {[%clk 0:01:10]} 30. Qc4+ {[%clk 0:00:15]}  Ka1 {[%clk 0:01:10]} 31. Nc2+ {[%clk 0:00:15]}  Kb1 {[%clk 0:01:08]} 32. Ne3 {[%clk 0:00:12]}  Rxd2 {[%clk 0:01:06]} 33. Qf1+ {[%clk 0:00:11]}  Ka2 {[%clk 0:00:57]} 34. Qc4+ {[%clk 0:00:11]}  Ka1 {[%clk 0:00:56]} 35. Qc1+ {[%clk 0:00:10]}  Qb1 {[%clk 0:00:56]} 0-1


[Site "https://www.chess.com"]

[Event "Titled Tuesday Blitz May 10 Early 2022"]
[White "Quirke, Jeffrey"]
[Black "Moskvin, Anatoly"]
[WhiteFideId "2013029"]
[BlackFideId "24199990"]
[WhiteElo "2152"]
[BlackElo "2079"]
[Result "0-1"]
[Round "07"]
[TimeControl "180+1"]
[Date "2022.05.11"]
[WhiteClock "0:00:18"]
[BlackClock "0:00:25"]

1. c4 {[%clk 0:03:00]}  e6 {[%clk 0:02:59]} 2. g3 {[%clk 0:03:00]}  d5 {[%clk 0:03:00]} 3. Bg2 {[%clk 0:02:57]}  c6 {[%clk 0:03:00]} 4. b3 {[%clk 0:02:57]}  dxc4 {[%clk 0:02:55]} 5. bxc4 {[%clk 0:02:54]}  Qd4 {[%clk 0:02:54]} 6. Nc3 {[%clk 0:02:52]}  Qxc4 {[%clk 0:02:55]} 7. Nf3 {[%clk 0:02:51]}  Nf6 {[%clk 0:02:54]} 8. O-O {[%clk 0:02:51]}  Be7 {[%clk 0:02:35]} 9. Bb2 {[%clk 0:02:50]}  Qb4 {[%clk 0:02:34]} 10. Qc2 {[%clk 0:02:48]}  O-O {[%clk 0:02:22]} 11. a4 {[%clk 0:02:47]}  Qa5 {[%clk 0:02:22]} 12. d4 {[%clk 0:02:34]}  Na6 {[%clk 0:02:17]} 13. e4 {[%clk 0:02:32]}  c5 {[%clk 0:01:58]} 14. d5 {[%clk 0:02:27]}  Nb4 {[%clk 0:01:42]} 15. Qb3 {[%clk 0:02:11]}  exd5 {[%clk 0:01:36]} 16. e5 {[%clk 0:01:51]}  c4 {[%clk 0:01:35]} 17. Qd1 {[%clk 0:01:42]}  Nd3 {[%clk 0:01:02]} 18. exf6 {[%clk 0:01:41]}  Bxf6 {[%clk 0:01:02]} 19. Nxd5 {[%clk 0:01:21]}  Bxb2 {[%clk 0:00:51]} 20. Ne7+ {[%clk 0:01:21]}  Kh8 {[%clk 0:00:51]} 21. Nd2 {[%clk 0:00:53]}  Be6 {[%clk 0:00:31]} 22. Bxb7 {[%clk 0:00:47]}  Bxa1 {[%clk 0:00:29]} 23. Bxa8 {[%clk 0:00:40]}  Rxa8 {[%clk 0:00:25]} 24. Qxa1 {[%clk 0:00:18]}  Qxd2 {[%clk 0:00:25]} 0-1


[Site "https://www.chess.com"]